[Event "Titled Tuesday Blitz December 06 Late 2022"]
[White "Omelja, Artem"]
[Black "Milikow, Yoav"]
[WhiteFideId "14119846"]
[BlackFideId "2822237"]
[WhiteElo "2550"]
[BlackElo "2794"]
[Result "1/2-1/2"]
[Round "02"]
[TimeControl "180+1"]
[Date "2022.12.07"]
[WhiteClock "0:00:43"]
[BlackClock "0:01:22"]

1. e4 {[%clk 0:03:00]}  e5 {[%clk 0:02:58]} 2. Nf3 {[%clk 0:03:00]}  Nc6 {[%clk 0:02:59]} 3. Nc3 {[%clk 0:02:59]}  Nf6 {[%clk 0:02:59]} 4. d4 {[%clk 0:02:59]}  exd4 {[%clk 0:03:00]} 5. Nxd4 {[%clk 0:02:59]}  Bb4 {[%clk 0:03:01]} 6. Nxc6 {[%clk 0:02:59]}  bxc6 {[%clk 0:03:02]} 7. Bd3 {[%clk 0:02:59]}  d5 {[%clk 0:03:02]} 8. exd5 {[%clk 0:02:59]}  O-O {[%clk 0:03:02]} 9. O-O {[%clk 0:02:58]}  Bg4 {[%clk 0:03:03]} 10. f3 {[%clk 0:02:27]}  Bh5 {[%clk 0:03:02]} 11. Bg5 {[%clk 0:02:22]}  Qd6 {[%clk 0:03:01]} 12. Kh1 {[%clk 0:02:07]}  Nxd5 {[%clk 0:02:52]} 13. Nxd5 {[%clk 0:02:04]}  cxd5 {[%clk 0:02:53]} 14. c4 {[%clk 0:02:04]}  Bg6 {[%clk 0:02:43]} 15. cxd5 {[%clk 0:01:55]}  Qxd5 {[%clk 0:02:44]} 16. Bxg6 {[%clk 0:01:54]}  Qxg5 {[%clk 0:02:44]} 17. Be4 {[%clk 0:01:54]}  Rab8 {[%clk 0:02:41]} 18. Qc1 {[%clk 0:01:51]}  Qe5 {[%clk 0:02:35]} 19. b3 {[%clk 0:01:38]}  Bd6 {[%clk 0:02:32]} 20. g3 {[%clk 0:01:38]}  f5 {[%clk 0:02:23]} 21. Qc4+ {[%clk 0:01:37]}  Kh8 {[%clk 0:02:23]} 22. Bc2 {[%clk 0:01:36]}  Rb4 {[%clk 0:02:18]} 23. Qc6 {[%clk 0:01:23]}  f4 {[%clk 0:01:45]} 24. Rae1 {[%clk 0:01:20]}  Qf6 {[%clk 0:01:36]} 25. g4 {[%clk 0:01:19]}  Rb6 {[%clk 0:01:31]} 26. Qe4 {[%clk 0:01:18]}  Qh4 {[%clk 0:01:30]} 27. Rd1 {[%clk 0:01:13]}  Rbb8 {[%clk 0:01:28]} 28. Rd5 {[%clk 0:01:07]}  Rbe8 {[%clk 0:01:24]} 29. Rh5 {[%clk 0:01:00]}  Qxh5 {[%clk 0:01:21]} 30. gxh5 {[%clk 0:01:00]}  Rxe4 {[%clk 0:01:19]} 31. Bxe4 {[%clk 0:01:01]}  Re8 {[%clk 0:01:17]} 32. Rd1 {[%clk 0:00:59]}  Re5 {[%clk 0:01:15]} 33. Rd5 {[%clk 0:00:58]}  Kg8 {[%clk 0:01:14]} 34. Rxe5 {[%clk 0:00:56]}  Bxe5 {[%clk 0:01:15]} 35. Kg2 {[%clk 0:00:57]}  h6 {[%clk 0:01:13]} 36. Kh3 {[%clk 0:00:56]}  Kf7 {[%clk 0:01:14]} 37. Kg4 {[%clk 0:00:57]}  Kf6 {[%clk 0:01:14]} 38. Bc6 {[%clk 0:00:52]}  Bd6 {[%clk 0:01:15]} 39. a4 {[%clk 0:00:49]}  a5 {[%clk 0:01:12]} 40. Bb5 {[%clk 0:00:48]}  Ke5 {[%clk 0:01:11]} 41. Bc4 {[%clk 0:00:48]}  Bb4 {[%clk 0:01:11]} 42. h3 {[%clk 0:00:47]}  Be1 {[%clk 0:01:11]} 43. Bg8 {[%clk 0:00:46]}  Bd2 {[%clk 0:01:10]} 44. Bc4 {[%clk 0:00:46]}  Kf6 {[%clk 0:01:10]} 45. Bg8 {[%clk 0:00:44]}  Be3 {[%clk 0:01:10]} 46. Bh7 {[%clk 0:00:42]}  Kf7 {[%clk 0:01:08]} 47. Bd3 {[%clk 0:00:42]}  Ke6 {[%clk 0:01:06]} 48. Bc4+ {[%clk 0:00:41]}  Kf6 {[%clk 0:01:06]} 49. Bd3 {[%clk 0:00:41]}  c6 {[%clk 0:01:06]} 50. Be4 {[%clk 0:00:41]}  c5 {[%clk 0:01:06]} 51. Bd3 {[%clk 0:00:41]}  Bd2 {[%clk 0:01:06]} 52. Be4 {[%clk 0:00:38]}  Ke5 {[%clk 0:01:06]} 53. Bd3 {[%clk 0:00:39]}  Be3 {[%clk 0:01:07]} 54. Bc4 {[%clk 0:00:38]}  Bc1 {[%clk 0:01:06]} 55. Bg8 {[%clk 0:00:38]}  Bd2 {[%clk 0:01:05]} 56. Bc4 {[%clk 0:00:38]}  Kf6 {[%clk 0:01:05]} 57. Bd3 {[%clk 0:00:38]}  Bc1 {[%clk 0:01:05]} 58. Bc4 {[%clk 0:00:38]}  g6 {[%clk 0:01:04]} 59. hxg6 {[%clk 0:00:39]}  Kxg6 {[%clk 0:01:05]} 60. h4 {[%clk 0:00:39]}  h5+ {[%clk 0:01:04]} 61. Kh3 {[%clk 0:00:40]}  Kf6 {[%clk 0:01:04]} 62. Bd3 {[%clk 0:00:39]}  Bd2 {[%clk 0:01:04]} 63. Bb5 {[%clk 0:00:39]}  Kg7 {[%clk 0:01:03]} 64. Be8 {[%clk 0:00:39]}  Kh6 {[%clk 0:01:03]} 65. Bf7 {[%clk 0:00:39]}  Be1 {[%clk 0:01:04]} 66. Be8 {[%clk 0:00:39]}  Bg3 {[%clk 0:01:04]} 67. Bf7 {[%clk 0:00:39]}  Be1 {[%clk 0:01:05]} 68. Be8 {[%clk 0:00:40]}  Bf2 {[%clk 0:01:05]} 69. Bf7 {[%clk 0:00:39]}  Bg3 {[%clk 0:01:06]} 70. Be8 {[%clk 0:00:39]}  Be1 {[%clk 0:01:06]} 71. Bf7 {[%clk 0:00:40]}  Bf2 {[%clk 0:01:05]} 72. Be8 {[%clk 0:00:40]}  Be1 {[%clk 0:01:05]} 73. Bf7 {[%clk 0:00:40]}  Bb4 {[%clk 0:01:05]} 74. Be8 {[%clk 0:00:40]}  Bc3 {[%clk 0:01:06]} 75. Bf7 {[%clk 0:00:39]}  Bf6 {[%clk 0:01:06]} 76. Be8 {[%clk 0:00:39]}  Be7 {[%clk 0:01:07]} 77. Bf7 {[%clk 0:00:40]}  Bd8 {[%clk 0:01:07]} 78. Be8 {[%clk 0:00:40]}  Bf6 {[%clk 0:01:08]} 79. Bf7 {[%clk 0:00:40]}  Bg7 {[%clk 0:01:08]} 80. Be8 {[%clk 0:00:41]}  Be5 {[%clk 0:01:09]} 81. Bf7 {[%clk 0:00:41]}  Bc3 {[%clk 0:01:09]} 82. Be8 {[%clk 0:00:41]}  Bb4 {[%clk 0:01:10]} 83. Bf7 {[%clk 0:00:41]}  Ba3 {[%clk 0:01:11]} 84. Be8 {[%clk 0:00:41]}  Bb2 {[%clk 0:01:12]} 85. Bf7 {[%clk 0:00:41]}  Be5 {[%clk 0:01:12]} 86. Be8 {[%clk 0:00:42]}  Bc3 {[%clk 0:01:12]} 87. Bf7 {[%clk 0:00:41]}  Bd2 {[%clk 0:01:13]} 88. Be8 {[%clk 0:00:41]}  Bb4 {[%clk 0:01:14]} 89. Bf7 {[%clk 0:00:41]}  Bc3 {[%clk 0:01:14]} 90. Be8 {[%clk 0:00:42]}  Bh8 {[%clk 0:01:14]} 91. Bf7 {[%clk 0:00:42]}  Bg7 {[%clk 0:01:15]} 92. Be8 {[%clk 0:00:42]}  Bf8 {[%clk 0:01:15]} 93. Bf7 {[%clk 0:00:42]}  Be7 {[%clk 0:01:16]} 94. Be8 {[%clk 0:00:42]}  Bd8 {[%clk 0:01:16]} 95. Bf7 {[%clk 0:00:42]}  Bc7 {[%clk 0:01:17]} 96. Be8 {[%clk 0:00:43]}  Bb8 {[%clk 0:01:18]} 97. Bf7 {[%clk 0:00:43]}  Ba7 {[%clk 0:01:18]} 98. Be8 {[%clk 0:00:43]}  Bb6 {[%clk 0:01:19]} 99. Bf7 {[%clk 0:00:43]}  Bc7 {[%clk 0:01:19]} 100. Be8 {[%clk 0:00:43]}  Bd6 {[%clk 0:01:20]} 101. Bf7 {[%clk 0:00:43]}  Be7 {[%clk 0:01:21]} 102. Be8 {[%clk 0:00:43]}  Bf6 {[%clk 0:01:21]} 103. Bf7 {[%clk 0:00:43]}  Bg7 {[%clk 0:01:22]} 1/2-1/2


[Site "https://www.chess.com"]

[Event "Titled Tuesday Blitz December 06 Late 2022"]
[White "Paravyan, David"]
[Black "Oro, Faustino"]
[WhiteFideId "4194985"]
[BlackFideId "20000197"]
[WhiteElo "2551"]
[BlackElo "1984"]
[Result "1-0"]
[Round "02"]
[TimeControl "180+1"]
[Date "2022.12.06"]
[WhiteClock "0:01:44"]
[BlackClock "0:00:18"]

1. e4 {[%clk 0:02:54]}  e5 {[%clk 0:02:59]} 2. Nf3 {[%clk 0:02:54]}  Nc6 {[%clk 0:02:59]} 3. Nc3 {[%clk 0:02:54]}  Nf6 {[%clk 0:02:59]} 4. d4 {[%clk 0:02:55]}  exd4 {[%clk 0:03:00]} 5. Nxd4 {[%clk 0:02:55]}  Bb4 {[%clk 0:03:01]} 6. Nxc6 {[%clk 0:02:56]}  bxc6 {[%clk 0:03:01]} 7. Bd3 {[%clk 0:02:56]}  O-O {[%clk 0:03:01]} 8. O-O {[%clk 0:02:56]}  d5 {[%clk 0:02:56]} 9. exd5 {[%clk 0:02:57]}  cxd5 {[%clk 0:02:56]} 10. Bg5 {[%clk 0:02:56]}  c6 {[%clk 0:02:56]} 11. Qf3 {[%clk 0:02:56]}  Be7 {[%clk 0:02:54]} 12. h3 {[%clk 0:02:51]}  Be6 {[%clk 0:02:51]} 13. Rfe1 {[%clk 0:02:47]}  Rb8 {[%clk 0:02:34]} 14. Ne2 {[%clk 0:02:40]}  Rxb2 {[%clk 0:02:23]} 15. Nd4 {[%clk 0:02:39]}  Bd7 {[%clk 0:02:19]} 16. Nb3 {[%clk 0:02:36]}  Bb4 {[%clk 0:01:44]} 17. c3 {[%clk 0:02:36]}  Ba3 {[%clk 0:01:18]} 18. Bc1 {[%clk 0:02:36]}  Qb6 {[%clk 0:01:11]} 19. Bxb2 {[%clk 0:02:34]}  Bxb2 {[%clk 0:01:11]} 20. Rab1 {[%clk 0:02:35]}  Ba3 {[%clk 0:01:08]} 21. Nd4 {[%clk 0:02:33]}  Qc7 {[%clk 0:01:06]} 22. Bf5 {[%clk 0:02:30]}  g6 {[%clk 0:00:56]} 23. Bxd7 {[%clk 0:02:28]}  Nxd7 {[%clk 0:00:57]} 24. c4 {[%clk 0:02:27]}  Bc5 {[%clk 0:00:40]} 25. Nb3 {[%clk 0:02:27]}  dxc4 {[%clk 0:00:34]} 26. Nxc5 {[%clk 0:02:28]}  Nxc5 {[%clk 0:00:35]} 27. Rec1 {[%clk 0:02:28]}  Rd8 {[%clk 0:00:27]} 28. Rxc4 {[%clk 0:02:25]}  Rd5 {[%clk 0:00:27]} 29. Rbc1 {[%clk 0:02:18]}  Qd6 {[%clk 0:00:24]} 30. Qg3 {[%clk 0:01:52]}  Qe7 {[%clk 0:00:18]} 31. Qa3 {[%clk 0:01:44]} 1-0


[Site "https://www.chess.com"]

[Event "Titled Tuesday Blitz December 06 Late 2022"]
[White "Pasti, Aron"]
[Black "Timmermans, Mark"]
[WhiteFideId "785857"]
[BlackFideId "1026399"]
[WhiteElo "2250"]
[BlackElo "2460"]
[Result "0-1"]
[Round "02"]
[TimeControl "180+1"]
[Date "2022.12.07"]
[WhiteClock "0:00:01"]
[BlackClock "0:00:13"]

1. e4 {[%clk 0:03:00]}  e5 {[%clk 0:02:57]} 2. Nf3 {[%clk 0:03:00]}  Nc6 {[%clk 0:02:54]} 3. Bb5 {[%clk 0:03:00]}  f5 {[%clk 0:02:55]} 4. d3 {[%clk 0:02:51]}  fxe4 {[%clk 0:02:54]} 5. dxe4 {[%clk 0:02:51]}  Nf6 {[%clk 0:02:55]} 6. O-O {[%clk 0:02:48]}  d6 {[%clk 0:02:54]} 7. Nc3 {[%clk 0:02:45]}  Be7 {[%clk 0:02:55]} 8. h3 {[%clk 0:02:34]}  O-O {[%clk 0:02:54]} 9. Be3 {[%clk 0:02:34]}  Kh8 {[%clk 0:02:47]} 10. a3 {[%clk 0:02:32]}  Qe8 {[%clk 0:02:44]} 11. Bc4 {[%clk 0:02:31]}  Qh5 {[%clk 0:02:24]} 12. Ng5 {[%clk 0:02:26]}  Qg6 {[%clk 0:02:23]} 13. Ne6 {[%clk 0:02:17]}  Bxe6 {[%clk 0:02:22]} 14. Bxe6 {[%clk 0:02:15]}  Nxe4 {[%clk 0:02:22]} 15. Bd5 {[%clk 0:02:08]}  Nxc3 {[%clk 0:02:16]} 16. bxc3 {[%clk 0:02:08]}  Bg5 {[%clk 0:02:17]} 17. Rb1 {[%clk 0:01:57]}  Rab8 {[%clk 0:02:10]} 18. Qg4 {[%clk 0:01:28]}  Bxe3 {[%clk 0:01:56]} 19. Qxg6 {[%clk 0:01:28]}  hxg6 {[%clk 0:01:35]} 20. fxe3 {[%clk 0:01:28]}  Rxf1+ {[%clk 0:01:32]} 21. Rxf1 {[%clk 0:01:26]}  Ne7 {[%clk 0:01:28]} 22. Be6 {[%clk 0:01:26]}  Nf5 {[%clk 0:01:15]} 23. e4 {[%clk 0:00:47]}  Ng3 {[%clk 0:01:14]} 24. Rf7 {[%clk 0:00:43]}  c6 {[%clk 0:01:14]} 25. c4 {[%clk 0:00:30]}  Nxe4 {[%clk 0:01:13]} 26. h4 {[%clk 0:00:29]}  Kh7 {[%clk 0:01:05]} 27. Kf1 {[%clk 0:00:25]}  g5 {[%clk 0:01:04]} 28. Bf5+ {[%clk 0:00:25]}  Kg8 {[%clk 0:01:01]} 29. Be6 {[%clk 0:00:17]}  Kh8 {[%clk 0:01:02]} 30. h5 {[%clk 0:00:03]}  Ng3+ {[%clk 0:01:02]} 31. Kf2 {[%clk 0:00:03]}  Nxh5 {[%clk 0:01:02]} 32. g3 {[%clk 0:00:03]}  Nf6 {[%clk 0:00:55]} 33. Ke3 {[%clk 0:00:03]}  Kh7 {[%clk 0:00:53]} 34. Bf5+ {[%clk 0:00:03]}  Kh6 {[%clk 0:00:51]} 35. g4 {[%clk 0:00:03]}  d5 {[%clk 0:00:42]} 36. cxd5 {[%clk 0:00:01]}  cxd5 {[%clk 0:00:43]} 37. Re7 {[%clk 0:00:01]}  d4+ {[%clk 0:00:32]} 38. Kd3 {[%clk 0:00:01]}  g6 {[%clk 0:00:33]} 39. Be6 {[%clk 0:00:01]}  Rd8 {[%clk 0:00:21]} 40. Bf7 {[%clk 0:00:01]}  e4+ {[%clk 0:00:21]} 41. Kd2 {[%clk 0:00:01]}  e3+ {[%clk 0:00:20]} 42. Ke1 {[%clk 0:00:01]}  Nxg4 {[%clk 0:00:20]} 43. Re6 {[%clk 0:00:01]}  Kg7 {[%clk 0:00:20]} 44. Bxg6 {[%clk 0:00:02]}  Nf6 {[%clk 0:00:17]} 45. Bf5 {[%clk 0:00:02]}  Kf7 {[%clk 0:00:15]} 46. Re5 {[%clk 0:00:01]}  Rd6 {[%clk 0:00:13]} 0-1


[Site "https://www.chess.com"]

[Event "Titled Tuesday Blitz December 06 Late 2022"]
[White "Petrovic, Aleksa"]
[Black "Gerbelli Neto, Eduardo"]
[WhiteFideId "967629"]
[BlackFideId "2103281"]
[WhiteElo "2230"]
[BlackElo "2178"]
[Result "1-0"]
[Round "02"]
[TimeControl "180+1"]
[Date "2022.12.07"]
[WhiteClock "0:00:59"]
[BlackClock "0:00:25"]

1. d4 {[%clk 0:02:58]}  d5 {[%clk 0:02:59]} 2. c4 {[%clk 0:02:58]}  c6 {[%clk 0:03:00]} 3. Nf3 {[%clk 0:02:58]}  Nf6 {[%clk 0:03:00]} 4. Nc3 {[%clk 0:02:57]}  e6 {[%clk 0:03:00]} 5. e3 {[%clk 0:02:56]}  Nbd7 {[%clk 0:03:00]} 6. Qc2 {[%clk 0:02:55]}  Bd6 {[%clk 0:02:57]} 7. Bd3 {[%clk 0:02:55]}  O-O {[%clk 0:02:47]} 8. O-O {[%clk 0:02:55]}  dxc4 {[%clk 0:02:44]} 9. Bxc4 {[%clk 0:02:55]}  e5 {[%clk 0:02:44]} 10. Rd1 {[%clk 0:02:50]}  Qe7 {[%clk 0:02:44]} 11. a3 {[%clk 0:02:36]}  e4 {[%clk 0:02:30]} 12. Ng5 {[%clk 0:02:29]}  Nb6 {[%clk 0:02:24]} 13. Ba2 {[%clk 0:02:18]}  Bxh2+ {[%clk 0:02:09]} 14. Kxh2 {[%clk 0:02:17]}  Ng4+ {[%clk 0:02:08]} 15. Kg1 {[%clk 0:02:17]}  Qxg5 {[%clk 0:02:08]} 16. Qxe4 {[%clk 0:02:12]}  Qh5 {[%clk 0:01:59]} 17. Qf4 {[%clk 0:02:09]}  Be6 {[%clk 0:01:47]} 18. f3 {[%clk 0:02:05]}  Nf6 {[%clk 0:01:39]} 19. g4 {[%clk 0:01:58]}  Qh4 {[%clk 0:01:22]} 20. Kg2 {[%clk 0:01:41]}  Nfd5 {[%clk 0:01:10]} 21. Nxd5 {[%clk 0:01:37]}  Nxd5 {[%clk 0:01:10]} 22. Qg3 {[%clk 0:01:33]}  Qxg3+ {[%clk 0:01:01]} 23. Kxg3 {[%clk 0:01:34]}  Nc7 {[%clk 0:00:43]} 24. Bxe6 {[%clk 0:01:28]}  Nxe6 {[%clk 0:00:42]} 25. e4 {[%clk 0:01:29]}  Rad8 {[%clk 0:00:41]} 26. Be3 {[%clk 0:01:29]}  Rd7 {[%clk 0:00:38]} 27. Rd2 {[%clk 0:01:29]}  Rfd8 {[%clk 0:00:37]} 28. Rad1 {[%clk 0:01:30]}  b6 {[%clk 0:00:37]} 29. f4 {[%clk 0:01:27]}  f6 {[%clk 0:00:37]} 30. f5 {[%clk 0:01:26]}  Nc7 {[%clk 0:00:34]} 31. e5 {[%clk 0:01:10]}  fxe5 {[%clk 0:00:32]} 32. dxe5 {[%clk 0:01:10]}  Rxd2 {[%clk 0:00:31]} 33. Rxd2 {[%clk 0:01:11]}  Rxd2 {[%clk 0:00:30]} 34. Bxd2 {[%clk 0:01:12]}  Nd5 {[%clk 0:00:31]} 35. Kf3 {[%clk 0:01:08]}  Kf7 {[%clk 0:00:31]} 36. Ke4 {[%clk 0:01:02]}  h6 {[%clk 0:00:31]} 37. e6+ {[%clk 0:01:01]}  Ke7 {[%clk 0:00:30]} 38. Ke5 {[%clk 0:01:00]}  a5 {[%clk 0:00:25]} 39. g5 {[%clk 0:01:00]}  hxg5 {[%clk 0:00:24]} 40. Bxg5+ {[%clk 0:01:00]}  Ke8 {[%clk 0:00:25]} 41. Kd6 {[%clk 0:00:59]} 1-0


[Site "https://www.chess.com"]

[Event "Titled Tuesday Blitz December 06 Late 2022"]
[White "Pham, Khoi"]
[Black "Liu, Casper"]
[WhiteFideId "1054988"]
[BlackFideId "1454153"]
[WhiteElo "2491"]
[BlackElo "2217"]
[Result "0-1"]
[Round "02"]
[TimeControl "180+1"]
[Date "2022.12.07"]
[WhiteClock "0:01:52"]
[BlackClock "0:01:55"]

1. e4 {[%clk 0:02:56]}  c6 {[%clk 0:02:57]} 2. d4 {[%clk 0:02:48]}  d5 {[%clk 0:02:57]} 3. exd5 {[%clk 0:02:48]}  cxd5 {[%clk 0:02:58]} 4. c4 {[%clk 0:02:48]}  Nf6 {[%clk 0:02:58]} 5. Nc3 {[%clk 0:02:48]}  g6 {[%clk 0:02:58]} 6. Nf3 {[%clk 0:02:48]}  Bg7 {[%clk 0:02:58]} 7. cxd5 {[%clk 0:02:49]}  O-O {[%clk 0:02:57]} 8. Bc4 {[%clk 0:02:49]}  Nbd7 {[%clk 0:02:57]} 9. O-O {[%clk 0:02:49]}  Nb6 {[%clk 0:02:58]} 10. Bb3 {[%clk 0:02:49]}  Nfxd5 {[%clk 0:02:57]} 11. h3 {[%clk 0:02:50]}  Be6 {[%clk 0:02:51]} 12. Re1 {[%clk 0:02:48]}  Nxc3 {[%clk 0:02:51]} 13. bxc3 {[%clk 0:02:49]}  Bxb3 {[%clk 0:02:51]} 14. axb3 {[%clk 0:02:49]}  Qc7 {[%clk 0:02:48]} 15. c4 {[%clk 0:02:44]}  Rfd8 {[%clk 0:02:48]} 16. Bb2 {[%clk 0:02:43]}  e6 {[%clk 0:02:48]} 17. Qe2 {[%clk 0:02:41]}  Qf4 {[%clk 0:02:48]} 18. Ra5 {[%clk 0:02:36]}  a6 {[%clk 0:02:47]} 19. g3 {[%clk 0:02:16]}  Qc7 {[%clk 0:02:37]} 20. Rc5 {[%clk 0:02:08]}  Qe7 {[%clk 0:02:37]} 21. Ne5 {[%clk 0:02:04]}  Nd7 {[%clk 0:02:33]} 22. Rc7 {[%clk 0:01:57]}  Qd6 {[%clk 0:01:58]} 23. Rxb7 {[%clk 0:01:51]}  Bxe5 {[%clk 0:01:54]} 24. dxe5 {[%clk 0:01:52]}  Qc6 {[%clk 0:01:55]} 25. Qe4 {[%clk 0:01:51]}  Qxe4 {[%clk 0:01:54]} 26. Rxe4 {[%clk 0:01:52]}  Nc5 {[%clk 0:01:55]} 0-1


[Site "https://www.chess.com"]

[Event "Titled Tuesday Blitz December 06 Late 2022"]
[White "Pham, Le Thao Nguyen"]
[Black "Spyropoulos, Nikolaos"]
[WhiteFideId "12401226"]
[BlackFideId "4298977"]
[WhiteElo "2282"]
[BlackElo "2336"]
[Result "0-1"]
[Round "02"]
[TimeControl "180+1"]
[Date "2022.12.07"]
[WhiteClock "0:00:03"]
[BlackClock "0:00:03"]

1. d4 {[%clk 0:02:59]}  d5 {[%clk 0:02:58]} 2. Nf3 {[%clk 0:02:58]}  Nc6 {[%clk 0:02:57]} 3. g3 {[%clk 0:02:56]}  Nf6 {[%clk 0:02:55]} 4. Bg2 {[%clk 0:02:56]}  Bf5 {[%clk 0:02:52]} 5. O-O {[%clk 0:02:56]}  e6 {[%clk 0:02:50]} 6. a3 {[%clk 0:02:54]}  Bd6 {[%clk 0:02:47]} 7. b4 {[%clk 0:02:54]}  O-O {[%clk 0:02:42]} 8. b5 {[%clk 0:02:52]}  Na5 {[%clk 0:02:35]} 9. Nbd2 {[%clk 0:02:51]}  a6 {[%clk 0:02:31]} 10. a4 {[%clk 0:02:45]}  Ne4 {[%clk 0:02:22]} 11. Nxe4 {[%clk 0:02:41]}  Bxe4 {[%clk 0:02:23]} 12. Ba3 {[%clk 0:02:38]}  Nc4 {[%clk 0:02:21]} 13. Bxd6 {[%clk 0:02:36]}  Qxd6 {[%clk 0:02:20]} 14. Nd2 {[%clk 0:02:34]}  Bxg2 {[%clk 0:01:51]} 15. Kxg2 {[%clk 0:02:20]}  axb5 {[%clk 0:01:50]} 16. Nxc4 {[%clk 0:02:08]}  bxc4 {[%clk 0:01:47]} 17. Qd2 {[%clk 0:02:06]}  b6 {[%clk 0:01:28]} 18. h4 {[%clk 0:02:05]}  Ra5 {[%clk 0:01:24]} 19. h5 {[%clk 0:01:43]}  h6 {[%clk 0:01:19]} 20. Rh1 {[%clk 0:01:42]}  Rfa8 {[%clk 0:01:12]} 21. Rh4 {[%clk 0:01:41]}  Rxa4 {[%clk 0:01:08]} 22. Rah1 {[%clk 0:01:36]}  c5 {[%clk 0:00:44]} 23. g4 {[%clk 0:01:35]}  c3 {[%clk 0:00:29]} 24. Qe3 {[%clk 0:01:23]}  Rxd4 {[%clk 0:00:26]} 25. g5 {[%clk 0:01:22]}  hxg5 {[%clk 0:00:22]} 26. Qxg5 {[%clk 0:01:21]}  Qd8 {[%clk 0:00:19]} 27. Qg3 {[%clk 0:01:19]}  Qf6 {[%clk 0:00:14]} 28. e3 {[%clk 0:01:16]}  Rxh4 {[%clk 0:00:11]} 29. Rxh4 {[%clk 0:01:15]}  e5 {[%clk 0:00:10]} 30. h6 {[%clk 0:01:11]}  g6 {[%clk 0:00:09]} 31. h7+ {[%clk 0:01:00]}  Kh8 {[%clk 0:00:09]} 32. f4 {[%clk 0:00:52]}  Re8 {[%clk 0:00:08]} 33. Qh3 {[%clk 0:00:36]}  Qf5 {[%clk 0:00:04]} 34. Qg3 {[%clk 0:00:28]}  Qxc2+ {[%clk 0:00:04]} 35. Kh3 {[%clk 0:00:25]}  Qf5+ {[%clk 0:00:04]} 36. Kh2 {[%clk 0:00:24]}  c2 {[%clk 0:00:05]} 37. Qg1 {[%clk 0:00:17]}  d4 {[%clk 0:00:05]} 38. Qh1 {[%clk 0:00:08]}  dxe3 {[%clk 0:00:03]} 39. Qc6 {[%clk 0:00:07]}  Rf8 {[%clk 0:00:02]} 40. Qd6 {[%clk 0:00:07]}  Re8 {[%clk 0:00:02]} 41. Qc6 {[%clk 0:00:06]}  Qe6 {[%clk 0:00:03]} 42. Qh1 {[%clk 0:00:03]}  e2 {[%clk 0:00:03]} 0-1


[Site "https://www.chess.com"]

[Event "Titled Tuesday Blitz December 06 Late 2022"]
[White "Poliakova, Varvara"]
[Black "Alexikov, Alexander"]
[WhiteFideId "13518313"]
[BlackFideId "14103958"]
[WhiteElo "2075"]
[BlackElo "2222"]
[Result "1-0"]
[Round "02"]
[TimeControl "180+1"]
[Date "2022.12.07"]
[WhiteClock "0:00:47"]
[BlackClock "0:00:02"]

1. f4 {[%clk 0:03:00]}  g6 {[%clk 0:02:56]} 2. Nf3 {[%clk 0:03:01]}  Bg7 {[%clk 0:02:56]} 3. g3 {[%clk 0:03:02]}  c6 {[%clk 0:02:55]} 4. Bg2 {[%clk 0:03:03]}  d5 {[%clk 0:02:55]} 5. O-O {[%clk 0:03:04]}  Nh6 {[%clk 0:02:54]} 6. d3 {[%clk 0:03:02]}  O-O {[%clk 0:02:54]} 7. e4 {[%clk 0:02:58]}  Ng4 {[%clk 0:02:43]} 8. Nc3 {[%clk 0:02:41]}  Qb6+ {[%clk 0:02:37]} 9. d4 {[%clk 0:02:41]}  dxe4 {[%clk 0:02:35]} 10. Nxe4 {[%clk 0:02:42]}  Bf5 {[%clk 0:02:33]} 11. Nc5 {[%clk 0:02:42]}  Nd7 {[%clk 0:02:27]} 12. Nxd7 {[%clk 0:02:42]}  Bxd7 {[%clk 0:02:26]} 13. c3 {[%clk 0:02:42]}  e5 {[%clk 0:02:11]} 14. h3 {[%clk 0:02:37]}  e4 {[%clk 0:02:10]} 15. Ng5 {[%clk 0:02:36]}  Nf6 {[%clk 0:02:08]} 16. Qc2 {[%clk 0:02:27]}  Rfe8 {[%clk 0:02:07]} 17. Be3 {[%clk 0:02:22]}  Nd5 {[%clk 0:01:51]} 18. Rfe1 {[%clk 0:02:20]}  f5 {[%clk 0:01:50]} 19. h4 {[%clk 0:02:14]}  h6 {[%clk 0:01:37]} 20. Nh3 {[%clk 0:02:02]}  c5 {[%clk 0:01:31]} 21. dxc5 {[%clk 0:01:58]}  Nxe3 {[%clk 0:01:29]} 22. Rxe3 {[%clk 0:01:56]}  Qxc5 {[%clk 0:01:29]} 23. Qf2 {[%clk 0:01:55]}  Bb5 {[%clk 0:01:10]} 24. h5 {[%clk 0:01:53]}  Rad8 {[%clk 0:01:04]} 25. hxg6 {[%clk 0:01:50]}  Rd6 {[%clk 0:01:03]} 26. Bf1 {[%clk 0:01:41]}  Bxf1 {[%clk 0:00:52]} 27. Rxf1 {[%clk 0:01:41]}  Red8 {[%clk 0:00:51]} 28. Re2 {[%clk 0:01:39]}  b6 {[%clk 0:00:45]} 29. Qxc5 {[%clk 0:01:37]}  bxc5 {[%clk 0:00:45]} 30. Kf2 {[%clk 0:01:35]}  Rxg6 {[%clk 0:00:43]} 31. Rfe1 {[%clk 0:01:32]}  c4 {[%clk 0:00:37]} 32. Ng1 {[%clk 0:01:27]}  Bf8 {[%clk 0:00:35]} 33. Rc2 {[%clk 0:01:22]}  Rd3 {[%clk 0:00:34]} 34. Ne2 {[%clk 0:01:18]}  Bc5+ {[%clk 0:00:25]} 35. Kg2 {[%clk 0:01:18]}  a5 {[%clk 0:00:24]} 36. b3 {[%clk 0:01:15]}  Kf7 {[%clk 0:00:22]} 37. bxc4 {[%clk 0:01:14]}  Rb6 {[%clk 0:00:20]} 38. Nd4 {[%clk 0:01:09]}  Bxd4 {[%clk 0:00:19]} 39. cxd4 {[%clk 0:01:10]}  Rxd4 {[%clk 0:00:19]} 40. c5 {[%clk 0:01:09]}  Rc6 {[%clk 0:00:18]} 41. Rh1 {[%clk 0:01:05]}  Rd5 {[%clk 0:00:16]} 42. a4 {[%clk 0:01:04]}  Kg6 {[%clk 0:00:16]} 43. Rb1 {[%clk 0:01:01]}  Rdxc5 {[%clk 0:00:14]} 44. Rxc5 {[%clk 0:01:01]}  Rxc5 {[%clk 0:00:15]} 45. Rb6+ {[%clk 0:01:02]}  Kh5 {[%clk 0:00:13]} 46. Kh3 {[%clk 0:00:59]}  Rc4 {[%clk 0:00:11]} 47. Rb5 {[%clk 0:00:58]}  Kg6 {[%clk 0:00:10]} 48. Rxa5 {[%clk 0:00:58]}  e3 {[%clk 0:00:10]} 49. Re5 {[%clk 0:00:53]}  Rxa4 {[%clk 0:00:06]} 50. Rxe3 {[%clk 0:00:54]}  Ra1 {[%clk 0:00:05]} 51. Re8 {[%clk 0:00:52]}  Ra5 {[%clk 0:00:03]} 52. Kh4 {[%clk 0:00:48]}  Ra1 {[%clk 0:00:02]} 53. Kh3 {[%clk 0:00:47]} 1-0


[Site "https://www.chess.com"]